{"text_format":"1","workbook":"xlsx","n_sheets":2,"sheets":["Veiledning","Skjema"],"not_rendered":{"charts":0,"images":0,"macros":1,"external_links":0,"defined_names":0,"comments":0,"pivot_tables":0},"unopened":[],"bounds":{"document_bytes":16777216,"sheet_cells":100000,"rows_first":2000,"rows_last":500,"rows_between":2000,"halvings":0,"cell_chars":16384,"cell_head_chars":4096},"cells_cut":0,"cells_raw":0,"read":"whole","date_system":"1900"}

{"sheet":"Veiledning","index":0,"n_rows":16,"n_cols":1,"rows_kept":16,"cut":false,"hidden":false,"merged":[]}
[]
[]
[]
["Det skal kun faktureres for følgende:   "]
[]
["·        Timer med oppfølging med deltaker til stede samt ved videomøte eller telefon, og timer som benyttes til oppfølging av arbeidsgivere knyttet til den enkelte deltaker. Gjennomsnittlig anslått behov er 10 timer oppfølging per deltaker pr måned i løpet av tiltaksperioden som helhet, se Bilag 1 punkt 4. "]
["Det kan kun faktureres for «oppfølging» slik «oppfølging» er definert i kravspesifikasjonens punkt 6, herunder at «oppfølging omfatter bistand til den enkelte deltaker med sikte på å komme i eller beholde lønnet arbeid».  Oppfølging innebærer også de andre innholdskravene i kravspesifikasjonens punkt 6. "]
["·        Det kan faktureres inntil 0,25 time for deltakere som ikke møter til avtale.  Dersom det ikke oppnås kontakt med deltaker, skal det til sammen gjøres tre forsøk på å nå deltaker (via telefon, mail, sms o.l.) før deltaker skal skrives ut av tiltaket. NAV-kontoret skal likevel varsles ved første fravær, i tråd med kravspesifikasjonen punkt 7.  "]
["·        Det kan faktureres for medgått reisetid til møter angående oppfølging av deltakere og arbeidsgivere knyttet til den enkelte deltaker, dog begrenset oppad til 1 time pr oppfølgingsmøte "]
["·        Det kan faktureres for medgått tid til skriving av statusrapport og sluttrapport, dog begrenset oppad til 1 time pr statusrapport og sluttrapport.  "]
[]
["Det innebærer at det ikke skal faktureres for annet enn det som eksplisitt er nevnt over. Alt annet må følgelig være inkludert i timesprisen som tilbys.  "]
[]
["Ved gruppeaktiviteter skal veileders forbruk av timer deles på antall deltakere og andelen faktureres for hver deltaker.  Totaltiden kan rundes opp til nærmeste hele kvarter (15 minutter). "]
[]
["Det skal kun faktureres for tid som er faktisk medgått til oppfølging og andre fakturerbare aktiviteter. Ved beregning av antall brukte timer, kan totaltiden rundes opp til nærmeste hele kvarter (15 minutter). "]

{"sheet":"Skjema","index":1,"n_rows":55,"n_cols":11,"rows_kept":55,"cut":false,"hidden":false,"merged":[[25,4,25,8],[0,0,0,9],[1,0,1,9],[12,0,12,9],[7,1,7,5],[8,1,8,5],[9,1,9,5],[10,1,10,5],[3,1,3,5],[4,1,4,5],[5,1,5,5],[6,1,6,5],[23,0,23,9]]}
["Fakturavedlegg for oppfølgingstiltaket"]
["Fakturavedlegget skal sendes til NAV sammen med fakturaen. For oppfølgingstiltaket skal det faktureres månedlig. "]
[]
["Fakturavedlegg for måned"]
["År"]
["Tiltaksnummer:"]
["Tilsagnsnummer"]
["Leverandør:"]
["Kontaktperson:"]
["Telefon:"]
["E-postadresse:"]
[]
["Oppgi hvilke godkjente veiledere som har jobbet i hvilken stillingsprosent i faktureringsperioden:"]
["Veileders navn","Stillingsprosent i perioden"]
[]
[]
[]
[]
[]
[]
[]
["XXX"]
[]
["Skriv inn alle datoer med seks eller åtte siffer og punktum (dd.mm.åå eller dd.mm.åååå), eks.: 01.01.21 eller 01.01.2021 (resultatet blir det samme). \nKolonne 1: Oppgi deltakerens fulle navn. Deltakerne skal føres inn sortert etter deltakers etternavn. \nKolonne 2: Oppgi deltakerens fødselsdato. \nKolonne 3: Oppgi navnet til deltakerens hovedveileder. \nKolonne 4: Skriv dato for når tiltaksdeltaker først startet i dette tiltaket. \nKolonne 5 og 6: Skriv start- og sluttdato i denne faktureringsperioden. \nKolonne 7: Oppfølgingstimer i faktuereringsperioden.                                                                                                                                                                                                                                                                                               Kolonne 8: Reisetid i faktuereringperioden                                                                                                                                                                                                                                                                                                Kolonne 9: Rapportskriving i faktueringsperioden\nKolonne 10: Antall oppfølgingtimer deltaker har fått i denne faktureringsperioden.                                                                                                                                                                                                                                Kolonne 11: Oppgi gjennomsnittlig antall oppfølgingstimer for gjennomført tiltaksperiode (totalt antall timer delt på antall måneder det er gjennomført tiltak). \n"]
[]
[null,null,null,null,"Faktureringsperiode "]
["1. \nDeltakers navn","2. \nFødselsdato","3. \nVeileders navn","4. \nOpprinnelig startdato","5. \nStartdato i fakturerings-perioden","6. \nSluttdato i fakturerings-perioden","7.Oppfølgings- timer ","8.Reisetid ","9.Rapport- skriving","10. Summen .\nAntall timer i fakturerings-perioden","11.\nGjennomsnittlig timeforbruk hittil i tiltaket"]
["",null,null,null,null,null,null,null,null,{"$f":"SUM(G28:I28)","v":0}]
[null,null,null,null,null,null,null,null,null,{"$f":"SUM(G29:I29)","v":0}]
[null,null,null,null,null,null,null,null,null,0]
[null,null,null,null,null,null,null,null,null,0]
[null,null,null,null,null,null,null,null,null,0]
[null,null,null,null,null,null,null,null,null,0]
[null,null,null,null,null,null,null,null,null,0]
[null,null,null,null,null,null,null,null,null,0]
[null,null,null,null,null,null,null,null,null,0]
[null,null,null,null,null,null,null,null,null,0]
[null,null,null,null,null,null,null,null,null,0]
[null,null,null,null,null,null,null,null,null,0]
[null,null,null,null,null,null,null,null,null,0]
[null,null,null,null,null,null,null,null,null,0]
[null,null,null,null,null,null,null,null,null,0]
[null,null,null,null,null,null,null,null,null,0]
[null,null,null,null,null,null,null,null,null,0]
[null,null,null,null,null,null,null,null,null,0]
[null,null,null,null,null,null,null,null,null,0]
[null,null,null,null,null,null,null,null,null,0]
[null,null,null,null,null,null,null,null,null,0]
[null,null,null,null,null,null,null,null,null,0]
[null,null,null,null,null,null,null,null,null,0]
[null,null,null,null,null,null,null,null,null,0]
[null,null,null,null,null,null,null,null,null,0]
[null,null,null,null,null,null,null,null,null,0]
[null,null,null,null,null,null,null,null,null,0]
[null,null,null,null,null,"Sum",null,null,null,{"$f":"SUM(J28:J54)","v":0}]